fUST/lending_fUST_20250624
["ID","MTS","AMOUNT","RATE_DAILY","PERIOD"]
[367225322,1750707045088,-460.0,0.00019535,2]
[367225324,1750707045098,-975.44,0.00019535,2]
[367225326,1750707045107,-609.03,0.00019535,2]
[367225328,1750707045117,-3728.4,0.00019535,2]
[367225330,1750707045126,-460.0,0.00019535,2]
[367225332,1750707045136,-460.0,0.00019536,2]
[367225334,1750707045145,-460.0,0.00019536,2]
[367225336,1750707045155,-460.0,0.00019536,2]
[367225338,1750707045164,-460.0,0.00019536,2]
[367225340,1750707045173,-460.0,0.00019536,2]
[367225342,1750707045182,-414.38435028,0.00019536,2]
[367225344,1750707045192,-460.0,0.00019536,2]
[367225346,1750707045201,-460.0,0.00019536,2]
[367225348,1750707045211,-801.78,0.00019536,2]
[367225350,1750707045219,-460.0,0.00019536,2]
[367225352,1750707045229,-460.0,0.00019536,2]
[367225354,1750707045239,-460.0,0.00019536,2]
[367225356,1750707045248,-460.0,0.00019536,2]
[367225358,1750707045257,-460.0,0.00019536,2]
[367225360,1750707045267,-460.0,0.00019536,2]
[367225362,1750707045276,-460.0,0.00019536,2]
[367225364,1750707045285,-460.0,0.00019536,2]
[367225366,1750707045295,-460.0,0.00019536,2]
[367225368,1750707045305,-460.0,0.00019536,2]
[367225370,1750707045316,-460.0,0.00019536,2]
[367225372,1750707045325,-460.0,0.00019536,2]
[367225374,1750707045335,-460.0,0.00019536,2]
[367225376,1750707045344,-460.0,0.00019536,2]
[367225378,1750707045354,-460.0,0.00019536,2]
[367225380,1750707045363,-460.0,0.00019536,2]
[367225382,1750707045373,-460.0,0.00019536,2]
[367225383,1750707045382,-460.0,0.00019536,2]
[367225385,1750707045392,-460.0,0.00019536,2]
[367225388,1750707045402,-460.0,0.00019536,2]
[367225390,1750707045411,-460.0,0.00019536,2]
[367225392,1750707045421,-460.0,0.00019536,2]
[367225393,1750707045430,-460.0,0.00019536,2]
[367225396,1750707045440,-460.0,0.00019536,2]
[367225398,1750707045450,-518.39,0.00019536,2]
[367225400,1750707045462,-460.0,0.00019536,2]
[367225402,1750707045471,-932.58,0.00019536,2]
[367225404,1750707045482,-450.12,0.00019536,2]
[367225406,1750707045491,-460.0,0.00019536,2]
[367225408,1750707045500,-1357.79,0.00019536,2]
[367225410,1750707045510,-620.87,0.00019536,2]
[367225412,1750707045519,-1338.09,0.00019536,2]
[367225414,1750707045529,-460.0,0.00019536,2]
[367225416,1750707045539,-460.0,0.00019536,2]
[367225417,1750707045548,-757.63,0.00019536,2]
[367225419,1750707045560,-396.80810749,0.00019536,2]
[367225421,1750707045570,-948.37,0.00019536,2]
[367225423,1750707045580,-481.66,0.00019536,2]
[367225425,1750707045590,-460.0,0.00019536,2]
[367225428,1750707045599,-460.0,0.00019536,2]
[367225429,1750707045609,-460.0,0.00019536,2]
[367225431,1750707045618,-460.0,0.00019536,2]
[367225433,1750707045627,-460.0,0.00019536,2]
[367225435,1750707045637,-460.0,0.00019536,2]
[367225437,1750707045646,-1073.71,0.00019536,2]
[367225439,1750707045656,-460.0,0.00019536,2]
[367225441,1750707045665,-460.0,0.00019536,2]
[367225443,1750707045675,-563.95,0.00019536,2]
[367225445,1750707045684,-460.0,0.00019536,2]
[367225447,1750707045694,-460.0,0.00019536,2]
[367225449,1750707045704,-460.0,0.00019536,2]
[367225451,1750707045713,-460.0,0.00019536,2]
[367225453,1750707045722,-500.0,0.00019536,2]
[367225455,1750707045732,-500.0,0.00019537,2]
[367225457,1750707045745,-460.0,0.00019537,2]
[367225459,1750707045755,-460.0,0.00019537,2]
[367225461,1750707045764,-460.0,0.00019537,2]
[367225463,1750707045774,-460.0,0.00019537,2]
[367225465,1750707045785,-2368.82,0.00019537,2]
[367225467,1750707045795,-2063.01,0.00019537,2]
[367225469,1750707045804,-460.0,0.00019537,2]
[367225471,1750707045820,-460.0,0.0001954,2]
[367225472,1750707045831,-460.0,0.0001954,2]
[367225473,1750707045840,-294.40003783,0.0001954,2]
[367225474,1750707045850,-520.2,0.0001954,2]
[367225475,1750707045861,-460.0,0.0001954,2]
[367225476,1750707045870,-622.05,0.0001954,2]
[367225477,1750707045880,-986.55,0.0001954,2]
[367225478,1750707045890,-460.0,0.0001954,2]
[367225479,1750707045900,-460.0,0.0001954,2]
[367225480,1750707045909,-460.0,0.0001954,2]
[367225481,1750707045919,-460.0,0.0001954,2]
[367225482,1750707045929,-591.77,0.0001954,2]
[367225483,1750707045939,-460.0,0.0001954,2]
[367225484,1750707045949,-460.0,0.0001954,2]
[367225485,1750707045958,-460.0,0.0001954,2]
[367225486,1750707045968,-461.0,0.0001954,2]
[367225487,1750707045978,-460.0,0.0001954,2]
[367225488,1750707045987,-460.0,0.0001954,2]
[367225489,1750707045997,-460.0,0.0001954,2]
[367225490,1750707046007,-500.0,0.0001954,2]
[367225491,1750707046017,-942.79,0.0001954,2]
[367225492,1750707046026,-460.0,0.0001954,2]
[367225493,1750707046035,-502.22,0.0001954,2]
[367225494,1750707046045,-460.0,0.0001954,2]
[367225495,1750707046057,-448.71,0.0001954,2]
[367225496,1750707046068,-873.57,0.0001954,2]
[367225497,1750707046077,-460.0,0.0001954,2]
[367225498,1750707046087,-460.0,0.0001954,2]
[367225499,1750707046096,-460.0,0.0001954,2]
[367225500,1750707046106,-1008.85,0.0001954,2]
[367225501,1750707046115,-487.92,0.0001954,2]
[367225502,1750707046124,-460.0,0.0001954,2]
[367225503,1750707046134,-460.0,0.0001954,2]
[367225504,1750707046144,-460.0,0.0001954,2]
[367225505,1750707046153,-460.0,0.0001954,2]
[367225506,1750707046163,-460.0,0.0001954,2]
[367225507,1750707046173,-574.23,0.0001954,2]
[367225508,1750707046183,-868.89,0.0001954,2]
[367225509,1750707046193,-460.0,0.0001954,2]
[367225510,1750707046203,-743.63,0.0001954,2]
[367225511,1750707046212,-460.0,0.0001954,2]
[367225513,1750707046221,-520.21,0.0001954,2]
[367225514,1750707046230,-1946.42,0.0001954,2]
[367225515,1750707046240,-460.0,0.0001954,2]
[367225516,1750707046249,-151.0,0.000196,2]
[367225517,1750707046258,-293.5569761,0.00019606,2]
[367225518,1750707046267,-159.92039952,0.00019627,2]
[367225519,1750707046277,-460.0,0.00019627,2]
[367225520,1750707046287,-460.0,0.00019627,2]
[367225521,1750707046296,-460.0,0.00019627,2]
[367225522,1750707046307,-460.0,0.00019627,2]
[367225523,1750707046317,-460.0,0.00019627,2]
[367225524,1750707046326,-460.0,0.00019627,2]
[367225525,1750707046336,-460.51890456,0.00019627,2]
[367225526,1750707046505,-460.0,0.00019627,2]
[367225527,1750707046515,-460.0,0.00019627,2]
[367225528,1750707046524,-460.0,0.00019627,2]
[367225529,1750707046534,-478.62,0.00019627,2]
[367225530,1750707046543,-460.0,0.00019627,2]
[367225531,1750707046553,-460.0,0.00019627,2]
[367225532,1750707046564,-460.0,0.00019627,2]
[367225533,1750707046573,-332.28768633,0.00019627,2]
[367225534,1750707046583,-460.0,0.00019627,2]
[367225535,1750707046592,-460.0,0.00019627,2]
[367225536,1750707046601,-460.0,0.00019627,2]
[367225537,1750707046611,-811.96,0.00019627,2]
[367225538,1750707046620,-460.0,0.00019627,2]
[367225539,1750707046630,-460.0,0.00019627,2]
[367225540,1750707046643,-460.0,0.00019627,2]
[367225541,1750707046652,-460.0,0.00019627,2]
[367225542,1750707046662,-779.61,0.00019627,2]
[367225543,1750707046671,-524.96,0.00019627,2]
[367225544,1750707046681,-460.0,0.00019627,2]
[367225545,1750707046690,-460.0,0.00019627,2]
[367225547,1750707046699,-413.22291753,0.00019627,2]
[367225548,1750707046708,-460.0,0.00019627,2]
[367225549,1750707046717,-460.0,0.00019627,2]
[367225550,1750707046727,-460.0,0.00019627,2]
[367225551,1750707046740,-460.0,0.00019627,2]
[367225552,1750707046749,-460.0,0.00019627,2]
[367225553,1750707046759,-460.0,0.00019627,2]
[367225554,1750707046768,-460.0,0.00019627,2]
[367225555,1750707046778,-512.54,0.00019627,2]
[367225556,1750707046787,-460.0,0.00019627,2]
[367225558,1750707046797,-460.0,0.00019627,2]
[367225560,1750707046808,-460.0,0.00019627,2]
[367225562,1750707046818,-612.64,0.00019627,2]
[367225564,1750707046827,-460.0,0.00019627,2]
[367225566,1750707046837,-460.0,0.00019627,2]
[367225568,1750707046846,-460.0,0.00019627,2]
[367225569,1750707046855,-460.0,0.00019627,2]
[367225571,1750707046865,-460.0,0.00019627,2]
[367225574,1750707046875,-292.0,0.00019631,2]
[367225576,1750707046884,-151.0,0.000197,2]
[367225578,1750707046894,-313.79390281,0.00019798,2]
[367225579,1750707046905,-365.8891638,0.000198,2]
[367225581,1750707046915,-365.8891638,0.000198,2]
[367225583,1750707046924,-365.2062734,0.000198,2]
[367225584,1750707046934,-460.0,0.00019805,2]
[367225585,1750707046944,-460.0,0.00019805,2]
[367225586,1750707046953,-460.0,0.00019805,2]
[367225587,1750707046963,-460.0,0.00019805,2]
[367225588,1750707046972,-460.0,0.00019806,2]
[367225589,1750707046981,-460.0,0.00019806,2]
[367225590,1750707046991,-460.0,0.00019806,2]
[367225591,1750707047000,-460.0,0.00019806,2]
[367225592,1750707047011,-460.0,0.00019806,2]
[367225593,1750707047020,-460.0,0.00019806,2]
[367225594,1750707047030,-2648.3,0.00019806,2]
[367225595,1750707047039,-2744.44,0.00019806,2]
[367225596,1750707047049,-2378.74,0.00019807,2]
[367225597,1750707047060,-835.11,0.00019807,2]
[367225598,1750707047070,-460.99,0.00019807,2]
[367225599,1750707047080,-460.0,0.00019807,2]
[367225600,1750707047089,-1874.63,0.00019807,2]
[367225601,1750707047099,-3339.64,0.00019807,2]
[367225602,1750707047108,-596.66,0.00019807,2]
[367225603,1750707047117,-1527.92,0.00019807,2]
[367225604,1750707047127,-1339.25,0.00019807,2]
[367225605,1750707047136,-843.39,0.00019807,2]
[367225606,1750707047145,-840.53,0.00019807,2]
[367225607,1750707047155,-460.0,0.00019807,2]
[367225608,1750707047164,-1113.1,0.00019807,2]
[367225609,1750707047173,-987.19,0.00019807,2]
[367225610,1750707047183,-483.08,0.00019807,2]
[367225611,1750707047193,-460.0,0.00019808,2]
[367225612,1750707047202,-460.0,0.00019808,2]
[367225613,1750707047211,-460.0,0.00019808,2]
[367225614,1750707047221,-460.0,0.00019808,2]
[367225615,1750707047230,-614.13,0.00019808,2]
[367225616,1750707047239,-460.0,0.00019808,2]
[367225617,1750707047248,-460.0,0.00019808,2]
[367225618,1750707047257,-460.0,0.00019808,2]
[367225619,1750707047267,-460.0,0.00019808,2]
[367225620,1750707047277,-460.0,0.00019808,2]
[367225621,1750707047286,-460.0,0.00019808,2]
[367225622,1750707047295,-460.0,0.00019808,2]
[367225623,1750707047304,-460.0,0.00019808,2]
[367225624,1750707047314,-1831.18,0.00019808,2]
[367225625,1750707047323,-532.28,0.00019808,2]
[367225626,1750707047333,-664.54,0.00019808,2]
[367225627,1750707047342,-460.0,0.00019808,2]
[367225628,1750707047352,-460.0,0.00019808,2]
[367225629,1750707047361,-549.41,0.00019808,2]
[367225630,1750707047370,-460.0,0.00019808,2]
[367225631,1750707047380,-1376.04,0.00019808,2]
[367225632,1750707047389,-460.0,0.00019808,2]
[367225633,1750707047398,-904.86,0.00019808,2]
[367225634,1750707047407,-870.43,0.00019808,2]
[367225635,1750707047417,-460.0,0.00019808,2]
[367225636,1750707047426,-460.0,0.00019808,2]
[367225637,1750707047435,-762.46,0.00019808,2]
[367225638,1750707047444,-761.2,0.00019808,2]
[367225639,1750707047455,-460.0,0.00019808,2]
[367225640,1750707047465,-460.0,0.00019808,2]
[367225641,1750707047474,-714.87,0.00019808,2]
[367225642,1750707047483,-3694.91,0.00019808,2]
[367225643,1750707047493,-487.35,0.00019808,2]
[367225644,1750707047503,-460.0,0.00019808,2]
[367225645,1750707047514,-460.0,0.00019808,2]
[367225646,1750707047523,-602.64,0.00019808,2]
[367225647,1750707047533,-1519.11,0.00019808,2]
[367225648,1750707047543,-1033.82,0.00019808,2]
[367225649,1750707047552,-666.37,0.00019808,2]
[367225650,1750707047563,-483.72,0.00019808,2]
[367225651,1750707047572,-178.90351438,0.00019808,2]
[367225652,1750707047581,-460.0,0.00019808,2]
[367225653,1750707047590,-460.0,0.00019808,2]
[367225654,1750707047600,-460.0,0.00019809,2]
[367225655,1750707047609,-460.0,0.00019809,2]
[367225656,1750707047618,-460.0,0.00019809,2]
[367225657,1750707047627,-460.0,0.00019809,2]
[367225658,1750707047636,-460.0,0.00019809,2]
[367225659,1750707047646,-9304.37,0.00019809,2]
[367225660,1750707047655,-599.09,0.00019809,2]
[367225661,1750707047664,-460.0,0.00019809,2]
[367225662,1750707047673,-467.82,0.00019809,2]
[367225663,1750707047682,-1044.14,0.00019809,2]
[367225664,1750707047691,-460.0,0.00019809,2]
[367225665,1750707047701,-589.45,0.00019809,2]
[367225666,1750707047710,-1008.44,0.00019809,2]
[367225667,1750707047719,-2778.4,0.00019809,2]
[367225668,1750707047729,-460.0,0.00019809,2]
[367225669,1750707047740,-460.0,0.00019809,2]
[367225670,1750707047750,-460.0,0.00019809,2]
[367225671,1750707047759,-460.0,0.00019809,2]
[367225672,1750707047768,-975.44,0.00019809,2]
[367225673,1750707047778,-609.03,0.00019809,2]
[367225674,1750707047790,-3728.4,0.00019809,2]
[367225675,1750707047800,-460.0,0.00019809,2]
[367225676,1750707047810,-460.0,0.0001981,2]
[367225677,1750707047820,-460.0,0.0001981,2]
[367225678,1750707047829,-460.0,0.0001981,2]
[367225679,1750707047839,-460.0,0.0001981,2]
[367225680,1750707047847,-801.78,0.0001981,2]
[367225681,1750707047858,-460.0,0.0001981,2]
[367225682,1750707047867,-460.0,0.0001981,2]
[367225683,1750707047876,-460.0,0.0001981,2]
[367225684,1750707047885,-460.0,0.0001981,2]
[367225685,1750707047894,-460.0,0.0001981,2]
[367225686,1750707047904,-460.0,0.0001981,2]
[367225687,1750707047914,-460.0,0.0001981,2]
[367225688,1750707047924,-460.0,0.0001981,2]
[367225689,1750707047934,-460.0,0.0001981,2]
[367225690,1750707047944,-460.0,0.0001981,2]
[367225691,1750707047953,-460.0,0.0001981,2]
[367225692,1750707047961,-460.0,0.0001981,2]
[367225693,1750707047971,-518.39,0.0001981,2]
[367225694,1750707047980,-460.0,0.0001981,2]
[367225695,1750707047989,-932.58,0.0001981,2]
[367225696,1750707047999,-460.0,0.0001981,2]
[367225697,1750707048009,-1357.79,0.0001981,2]
[367225698,1750707048019,-620.87,0.0001981,2]
[367225699,1750707048028,-1338.09,0.0001981,2]
[367225700,1750707048038,-460.0,0.0001981,2]
[367225701,1750707048048,-460.0,0.0001981,2]
[367225702,1750707048058,-757.63,0.0001981,2]
[367225703,1750707048067,-948.37,0.0001981,2]
[367225704,1750707048077,-481.66,0.0001981,2]
[367225705,1750707048087,-460.0,0.0001981,2]
[367225706,1750707048096,-460.0,0.0001981,2]
[367225707,1750707048106,-460.0,0.0001981,2]
[367225708,1750707048115,-1073.71,0.0001981,2]
[367225709,1750707048125,-460.0,0.0001981,2]
[367225710,1750707048135,-460.0,0.0001981,2]
[367225711,1750707048144,-563.95,0.0001981,2]
[367225712,1750707048154,-460.0,0.0001981,2]
[367225713,1750707048163,-460.0,0.0001981,2]
[367225714,1750707048173,-460.0,0.0001981,2]
[367225715,1750707048183,-500.0,0.0001981,2]
[367225716,1750707048193,-509.97905134,0.00019811,2]
[367225717,1750707048202,-460.0,0.00019811,2]
[367225718,1750707048211,-460.0,0.00019811,2]
[367225719,1750707048221,-460.0,0.00019811,2]
[367225720,1750707048231,-460.0,0.00019811,2]
[367225721,1750707048241,-2368.82,0.00019811,2]
[367225722,1750707048250,-2063.01,0.00019811,2]
[367225723,1750707048260,-460.0,0.00019811,2]
[367225724,1750707048270,-520.2,0.00019814,2]
[367225725,1750707048279,-622.05,0.00019814,2]
[367225726,1750707048289,-986.55,0.00019814,2]
[367225727,1750707048298,-460.0,0.00019814,2]
[367225728,1750707048308,-286.35413054,0.00019814,2]
[367225729,1750707048318,-460.0,0.00019814,2]
[367225730,1750707048327,-461.0,0.00019814,2]
[367225731,1750707048337,-460.0,0.00019814,2]
[367225732,1750707048347,-460.0,0.00019814,2]
[367225733,1750707048356,-500.0,0.00019814,2]
[367225734,1750707048366,-942.79,0.00019814,2]
[367225735,1750707048380,-460.0,0.00019814,2]
[367225736,1750707048394,-502.22,0.00019814,2]
[367225737,1750707048408,-460.0,0.00019814,2]
[367225738,1750707048421,-873.57,0.00019814,2]
[367225739,1750707048433,-460.0,0.00019814,2]
[367225740,1750707048443,-1008.85,0.00019814,2]
[367225741,1750707048455,-487.92,0.00019814,2]
[367225742,1750707048469,-460.0,0.00019814,2]
[367225743,1750707048481,-460.0,0.00019814,2]
[367225744,1750707048495,-460.0,0.00019814,2]
[367225745,1750707048508,-460.0,0.00019814,2]
[367225746,1750707048521,-460.0,0.00019814,2]
[367225747,1750707048534,-574.23,0.00019814,2]
[367225748,1750707048547,-868.89,0.00019814,2]
[367225749,1750707048560,-460.0,0.00019814,2]
[367225750,1750707048574,-743.63,0.00019814,2]
[367225751,1750707048587,-460.0,0.00019814,2]
[367225752,1750707048599,-520.21,0.00019814,2]
[367225753,1750707048611,-1946.42,0.00019814,2]
[367225754,1750707048623,-460.0,0.00019814,2]
[367225755,1750707048634,-1000.0,0.00019821,2]
[367225756,1750707048646,-1000.0,0.00019821,2]
[367225757,1750707048659,-1000.0,0.00019821,2]
[367225758,1750707048671,-500.0,0.0001983,2]
[367225759,1750707048683,-1366.0,0.00019843,2]
[367225760,1750707048694,-1877.31310312,0.0001989,2]
[367225761,1750707048704,-151.0,0.000199,2]
[367225762,1750707048716,-249.54147842,0.00019901,2]
[367225763,1750707048727,-460.0,0.00019901,2]
[367225764,1750707048741,-460.0,0.00019901,2]
[367225765,1750707048753,-460.0,0.00019901,2]
[367225766,1750707048765,-478.62,0.00019901,2]
[367225767,1750707048778,-460.0,0.00019901,2]
[367225768,1750707048789,-460.0,0.00019901,2]
[367225769,1750707048802,-460.0,0.00019901,2]
[367225770,1750707048817,-811.96,0.00019901,2]
[367225771,1750707048831,-460.0,0.00019901,2]
[367225772,1750707048844,-460.0,0.00019901,2]
[367225773,1750707048856,-779.61,0.00019901,2]
[367225774,1750707048867,-524.96,0.00019901,2]
[367225775,1750707048878,-460.0,0.00019901,2]
[367225776,1750707048888,-460.0,0.00019901,2]
[367225777,1750707048899,-460.0,0.00019901,2]
[367225778,1750707048911,-460.0,0.00019901,2]
[367225779,1750707048924,-460.0,0.00019901,2]
[367225780,1750707048937,-460.0,0.00019901,2]
[367225781,1750707048948,-460.0,0.00019901,2]
[367225782,1750707048958,-460.0,0.00019901,2]
[367225783,1750707048970,-460.0,0.00019901,2]
[367225784,1750707048981,-512.54,0.00019901,2]
[367225785,1750707048992,-460.0,0.00019901,2]
[367225786,1750707049005,-460.0,0.00019901,2]
[367225787,1750707049016,-460.0,0.00019901,2]
[367225788,1750707049027,-612.64,0.00019901,2]
[367225789,1750707049037,-460.0,0.00019901,2]
[367225790,1750707049047,-460.0,0.00019901,2]
[367225791,1750707049060,-460.0,0.00019901,2]
[367225792,1750707049071,-460.0,0.00019901,2]
[367225793,1750707049083,-365.83363809,0.00019977,2]
[367225794,1750707049095,-440.0,0.00019977,2]
[367225795,1750707049107,-460.0,0.00019977,2]
[367225796,1750707049118,-460.0,0.00019977,2]
[367225797,1750707049130,-471.79044387,0.00019977,2]
[367225798,1750707049141,-460.0,0.00019977,2]
[367225799,1750707049152,-429.701192,0.00019977,2]
[367225800,1750707049163,-460.0,0.00019977,2]
[367225801,1750707049174,-169.64197916,0.00019977,2]
[367225802,1750707049185,-2693.31,0.00019977,2]
[367225803,1750707049195,-460.0,0.00019977,2]
[367225804,1750707049207,-4587.93,0.00019977,2]
[367225805,1750707049218,-460.0,0.00019977,2]
[367225806,1750707049228,-3825.13,0.00019977,2]
[367225807,1750707049240,-460.0,0.00019977,2]
[367225808,1750707049251,-460.0,0.00019977,2]
[367225809,1750707049261,-238.42945102,0.00019982,2]
[367225810,1750707049273,-67488.36905524,0.0001999,2]
[367225811,1750707049284,-151.0,0.0002,2]
[367225812,1750707049295,-372.58405531,0.0002,2]
[367225813,1750707049306,-4543.34108107,0.0002,2]
[367225814,1750707049318,-1366.0,0.00020054,2]
[367225815,1750707049329,-1366.0,0.00020072,2]
[367225816,1750707049339,-460.0,0.00020079,2]
[367225817,1750707049350,-460.0,0.00020079,2]
[367225818,1750707049361,-460.0,0.00020079,2]
[367225819,1750707049371,-460.0,0.00020079,2]
[367225820,1750707049382,-460.0,0.0002008,2]
[367225821,1750707049393,-460.0,0.0002008,2]
[367225822,1750707049404,-460.0,0.0002008,2]
[367225823,1750707049414,-460.0,0.0002008,2]
[367225824,1750707049425,-460.0,0.0002008,2]
[367225825,1750707049436,-460.0,0.0002008,2]
[367225826,1750707049446,-2648.3,0.0002008,2]
[367225827,1750707049457,-2744.44,0.0002008,2]
[367225828,1750707049467,-2378.74,0.00020081,2]
[367225829,1750707049478,-835.11,0.00020081,2]
[367225830,1750707049489,-460.99,0.00020081,2]
[367225831,1750707049500,-460.0,0.00020081,2]
[367225832,1750707049510,-1874.63,0.00020081,2]
[367225833,1750707049520,-3339.64,0.00020081,2]
[367225834,1750707049534,-596.66,0.00020081,2]
[367225835,1750707049545,-1527.92,0.00020081,2]
[367225836,1750707049555,-1339.25,0.00020081,2]
[367225837,1750707049567,-843.39,0.00020081,2]
[367225838,1750707049577,-840.53,0.00020081,2]
[367225839,1750707049588,-460.0,0.00020081,2]
[367225840,1750707049599,-1113.1,0.00020081,2]
[367225841,1750707049610,-987.19,0.00020081,2]
[367225842,1750707049620,-483.08,0.00020081,2]
[367225843,1750707049632,-460.0,0.00020082,2]
[367225844,1750707049642,-460.0,0.00020082,2]
[367225845,1750707049653,-460.0,0.00020082,2]
[367225846,1750707049664,-614.13,0.00020082,2]
[367225847,1750707049675,-460.0,0.00020082,2]
[367225848,1750707049686,-460.0,0.00020082,2]
[367225849,1750707049697,-584.19228531,0.00020082,2]
[367225850,1750707049708,-460.0,0.00020082,2]
[367225851,1750707049718,-460.0,0.00020082,2]
[367225852,1750707049729,-460.0,0.00020082,2]
[367225853,1750707049741,-460.0,0.00020082,2]
[367225854,1750707049752,-460.0,0.00020082,2]
[367225855,1750707049765,-1831.18,0.00020082,2]
[367225856,1750707049775,-532.28,0.00020082,2]
[367225857,1750707049787,-664.54,0.00020082,2]
[367225858,1750707049797,-460.0,0.00020082,2]
[367225859,1750707049809,-460.0,0.00020082,2]
[367225860,1750707049821,-549.41,0.00020082,2]
[367225861,1750707049833,-460.0,0.00020082,2]
[367225862,1750707049843,-1376.04,0.00020082,2]
[367225863,1750707049854,-460.0,0.00020082,2]
[367225864,1750707049866,-904.86,0.00020082,2]
[367225865,1750707049877,-870.43,0.00020082,2]
[367225866,1750707049887,-460.0,0.00020082,2]
[367225867,1750707049898,-460.0,0.00020082,2]
[367225868,1750707049908,-762.46,0.00020082,2]
[367225869,1750707049919,-761.2,0.00020082,2]
[367225870,1750707049930,-460.0,0.00020082,2]
[367225871,1750707049941,-460.0,0.00020082,2]
[367225872,1750707049951,-714.87,0.00020082,2]
[367225873,1750707049962,-3694.91,0.00020082,2]
[367225874,1750707049973,-487.35,0.00020082,2]
[367225875,1750707049984,-460.0,0.00020082,2]
[367225876,1750707049995,-460.0,0.00020082,2]
[367225877,1750707050006,-602.64,0.00020082,2]
[367225878,1750707050017,-1519.11,0.00020082,2]
[367225879,1750707050027,-1033.82,0.00020082,2]
[367225880,1750707050039,-666.37,0.00020082,2]
[367225881,1750707050049,-483.72,0.00020082,2]
[367225882,1750707050061,-460.0,0.00020082,2]
[367225883,1750707050072,-460.0,0.00020082,2]
[367225884,1750707050082,-460.0,0.00020083,2]
[367225885,1750707050093,-460.0,0.00020083,2]
[367225886,1750707050104,-460.0,0.00020083,2]
[367225887,1750707050115,-460.0,0.00020083,2]
[367225888,1750707050125,-460.0,0.00020083,2]
[367225889,1750707050136,-9304.37,0.00020083,2]
[367225890,1750707050147,-599.09,0.00020083,2]
[367225891,1750707050158,-460.0,0.00020083,2]
[367225892,1750707050169,-467.82,0.00020083,2]
[367225893,1750707050179,-1044.14,0.00020083,2]
[367225894,1750707050190,-460.0,0.00020083,2]
[367225895,1750707050200,-589.45,0.00020083,2]
[367225896,1750707050211,-1008.44,0.00020083,2]
[367225897,1750707050222,-2778.4,0.00020083,2]
[367225898,1750707050232,-460.0,0.00020083,2]
[367225899,1750707050243,-460.0,0.00020083,2]
[367225900,1750707050253,-460.0,0.00020083,2]
[367225901,1750707050265,-460.0,0.00020083,2]
[367225902,1750707050276,-975.44,0.00020083,2]
[367225903,1750707050287,-609.03,0.00020083,2]
[367225904,1750707050297,-3728.4,0.00020083,2]
[367225905,1750707050309,-460.0,0.00020083,2]
[367225906,1750707050320,-460.0,0.00020084,2]
[367225907,1750707050330,-460.0,0.00020084,2]
[367225908,1750707050341,-460.0,0.00020084,2]
[367225909,1750707050351,-460.0,0.00020084,2]
[367225910,1750707050362,-801.78,0.00020084,2]